fUSD/lending_fUSD_20260622
["ID","MTS","AMOUNT","RATE_DAILY","PERIOD"]
[426057278,1782131581000,-699.61,0.00031506,2]
[426057286,1782131581000,-3549.98,0.00031506,2]
[426057291,1782131581000,-567.35,0.00031506,2]
[426057302,1782131581000,-500.0,0.00031506,2]
[426057301,1782131581000,-504.85,0.00031506,2]
[426057285,1782131581000,-636.95,0.00031506,2]
[426057290,1782131581000,-519.8,0.00031506,2]
[426057292,1782131581000,-546.18,0.00031506,2]
[426057294,1782131581000,-1496.54,0.00031506,2]
[426057297,1782131581000,-1362.17,0.00031506,2]
[426057293,1782131581000,-1271.92,0.00031506,2]
[426057300,1782131581000,-711.86,0.00031506,2]
[426057296,1782131581000,-500.0,0.00031506,2]
[426057299,1782131581000,-1838.48,0.00031506,2]
[426057295,1782131581000,-3395.17,0.00031506,2]
[426057303,1782131581000,-500.0,0.00031506,2]
[426057306,1782131581000,-6186.73,0.00031506,2]
[426057305,1782131581000,-4341.82,0.00031506,2]
[426057247,1782131581000,-626.46,0.00031506,2]
[426057298,1782131581000,-695.59,0.00031506,2]
[426057280,1782131581000,-500.0,0.00031506,2]
[426057304,1782131581000,-593.14784368,0.00031506,2]
[426057275,1782131581000,-585.33,0.00031506,2]
[426057250,1782131581000,-500.0,0.00031506,2]
[426057249,1782131581000,-512.67,0.00031506,2]
[426057252,1782131581000,-500.0,0.00031506,2]
[426057256,1782131581000,-566.57,0.00031506,2]
[426057255,1782131581000,-733.03,0.00031506,2]
[426057254,1782131581000,-2693.07,0.00031506,2]
[426057257,1782131581000,-861.51,0.00031506,2]
[426057282,1782131581000,-604.11,0.00031506,2]
[426057258,1782131581000,-500.0,0.00031506,2]
[426057261,1782131581000,-2103.48,0.00031506,2]
[426057259,1782131581000,-804.78,0.00031506,2]
[426057263,1782131581000,-500.0,0.00031506,2]
[426057260,1782131581000,-593.89,0.00031506,2]
[426057262,1782131581000,-500.0,0.00031506,2]
[426057264,1782131581000,-500.0,0.00031506,2]
[426057265,1782131581000,-500.0,0.00031506,2]
[426057276,1782131581000,-830.91,0.00031506,2]
[426057274,1782131581000,-626.49,0.00031506,2]
[426057277,1782131581000,-500.0,0.00031506,2]
[426057273,1782131581000,-1155.68,0.00031506,2]
[426057271,1782131581000,-698.47,0.00031506,2]
[426057266,1782131581000,-500.0,0.00031506,2]
[426057272,1782131581000,-1706.4,0.00031506,2]
[426057269,1782131581000,-785.53,0.00031506,2]
[426057268,1782131581000,-2746.21,0.00031506,2]
[426057267,1782131581000,-554.28,0.00031506,2]
[426057270,1782131581000,-500.0,0.00031506,2]
[426057346,1782131582000,-909.43,0.00031506,2]
[426057348,1782131582000,-500.0,0.00031506,2]
[426057347,1782131582000,-500.0,0.00031506,2]
[426057345,1782131582000,-658.07,0.00031506,2]
[426057342,1782131582000,-7004.08,0.00031506,2]
[426057335,1782131582000,-500.0,0.00031506,2]
[426057343,1782131582000,-500.0,0.00031506,2]
[426057340,1782131582000,-6597.51,0.00031506,2]
[426057338,1782131582000,-1169.7,0.00031506,2]
[426057339,1782131582000,-4492.09,0.00031506,2]
[426057341,1782131582000,-5976.83,0.00031506,2]
[426057344,1782131582000,-9672.86,0.00031506,2]
[426057364,1782131582000,-500.0,0.00031506,2]
[426057351,1782131582000,-4376.06,0.00031506,2]
[426057355,1782131582000,-500.0,0.00031506,2]
[426057358,1782131582000,-775.18,0.00031506,2]
[426057350,1782131582000,-8639.58,0.00031506,2]
[426057357,1782131582000,-500.0,0.00031506,2]
[426057356,1782131582000,-5625.93,0.00031506,2]
[426057359,1782131582000,-844.33,0.00031506,2]
[426057352,1782131582000,-8686.62,0.00031506,2]
[426057353,1782131582000,-919.77,0.00031506,2]
[426057354,1782131582000,-572.97964945,0.00031506,2]
[426057361,1782131582000,-500.0,0.00031506,2]
[426057334,1782131582000,-500.0,0.00031506,2]
[426057349,1782131582000,-1002.58,0.00031506,2]
[426057330,1782131582000,-7121.05,0.00031506,2]
[426057321,1782131582000,-687.7,0.00031506,2]
[426057337,1782131582000,-4227.56,0.00031506,2]
[426057308,1782131582000,-2940.44,0.00031506,2]
[426057309,1782131582000,-11028.8,0.00031506,2]
[426057310,1782131582000,-616.23,0.00031506,2]
[426057311,1782131582000,-5138.93,0.00031506,2]
[426057312,1782131582000,-847.85,0.00031506,2]
[426057314,1782131582000,-849.12,0.00031506,2]
[426057307,1782131582000,-4113.41,0.00031506,2]
[426057313,1782131582000,-1204.89,0.00031506,2]
[426057315,1782131582000,-500.0,0.00031506,2]
[426057317,1782131582000,-8197.77,0.00031506,2]
[426057316,1782131582000,-417.35896987,0.00031506,2]
[426057318,1782131582000,-2000.0,0.00031506,2]
[426057323,1782131582000,-713.2,0.00031506,2]
[426057319,1782131582000,-500.0,0.00031506,2]
[426057320,1782131582000,-3373.56,0.00031506,2]
[426057324,1782131582000,-685.72,0.00031506,2]
[426057322,1782131582000,-570.0,0.00031506,2]
[426057326,1782131582000,-1010.5,0.00031506,2]
[426057325,1782131582000,-557.86,0.00031506,2]
[426057328,1782131582000,-500.0,0.00031506,2]
[426057327,1782131582000,-591.59,0.00031506,2]
[426057336,1782131582000,-6843.28,0.00031506,2]
[426057333,1782131582000,-500.0,0.00031506,2]
[426057329,1782131582000,-1413.15,0.00031506,2]
[426057332,1782131582000,-500.0,0.00031506,2]
[426057331,1782131582000,-657.57,0.00031506,2]
[426057363,1782131582000,-912.76,0.00031506,2]
[426057360,1782131582000,-367.43281968,0.00031506,2]
[426057366,1782131582000,-2905.9,0.00031506,2]
[426057395,1782131582000,-150.0,0.0003161,2]
[426057397,1782131582000,-150.0,0.0003161,2]
[426057402,1782131582000,-150.0,0.0003161,2]
[426057399,1782131582000,-151.5457662,0.0003161,2]
[426057403,1782131582000,-2434.0,0.0003161,7]
[426057405,1782131582000,-19053.33,0.00031625,2]
[426057404,1782131582000,-1735.0,0.0003161,7]
[426057401,1782131582000,-150.0,0.0003161,2]
[426057400,1782131582000,-150.0,0.0003161,2]
[426057398,1782131582000,-150.0,0.0003161,2]
[426057417,1782131582000,-100155.507863,0.000317,5]
[426057409,1782131582000,-4000.0,0.00031678,10]
[426057408,1782131582000,-10000.0,0.00031667,2]
[426057406,1782131582000,-190.28,0.00031635,5]
[426057412,1782131582000,-251.0,0.0003168,2]
[426057410,1782131582000,-251.0,0.0003168,2]
[426057415,1782131582000,-196.0,0.0003168,30]
[426057414,1782131582000,-251.0,0.0003168,2]
[426057416,1782131582000,-468.0,0.00031685,5]
[426057413,1782131582000,-251.0,0.0003168,2]
[426057411,1782131582000,-251.0,0.0003168,2]
[426057418,1782131582000,-150.317321,0.00031732,52]
[426057419,1782131582000,-24999.97,0.0003175,2]
[426057420,1782131582000,-2500.0,0.0003175,2]
[426057362,1782131582000,-1087.5,0.00031506,2]
[426057396,1782131582000,-150.0,0.0003161,2]
[426057392,1782131582000,-157.11176336,0.00031569,5]
[426057407,1782131582000,-1624.05,0.00031644,2]
[426057391,1782131582000,-152.0,0.00031569,9]
[426057365,1782131582000,-729.92,0.00031506,2]
[426057390,1782131582000,-530.35299093,0.00031507,2]
[426057368,1782131582000,-4175.97,0.00031506,2]
[426057369,1782131582000,-500.0,0.00031506,2]
[426057370,1782131582000,-513.61,0.00031506,2]
[426057367,1782131582000,-2044.4,0.00031506,2]
[426057371,1782131582000,-500.0,0.00031506,2]
[426057382,1782131582000,-879.74,0.00031506,2]
[426057373,1782131582000,-500.0,0.00031506,2]
[426057376,1782131582000,-500.0,0.00031506,2]
[426057372,1782131582000,-895.47,0.00031506,2]
[426057375,1782131582000,-554.0,0.00031506,2]
[426057377,1782131582000,-1281.85,0.00031506,2]
[426057374,1782131582000,-781.2,0.00031506,2]
[426057389,1782131582000,-150.0,0.00031507,2]
[426057393,1782131582000,-785.0,0.00031574,2]
[426057378,1782131582000,-777.53,0.00031506,2]
[426057387,1782131582000,-500.0,0.00031506,2]
[426057388,1782131582000,-984.2,0.00031506,2]
[426057386,1782131582000,-500.0,0.00031506,2]
[426057385,1782131582000,-948.85,0.00031506,2]
[426057394,1782131582000,-150.0,0.00031608,120]
[426057384,1782131582000,-1013.21,0.00031506,2]
[426057380,1782131582000,-805.85,0.00031506,2]
[426057381,1782131582000,-644.23497912,0.00031506,2]
[426057379,1782131582000,-537.51,0.00031506,2]
[426057383,1782131582000,-180.8,0.00031506,2]
[426057462,1782131583000,-1404.94,0.0003178,2]
[426057463,1782131583000,-1137.32,0.0003178,2]
[426057458,1782131583000,-500.0,0.0003178,2]
[426057461,1782131583000,-500.0,0.0003178,2]
[426057459,1782131583000,-500.0,0.0003178,2]
[426057448,1782131583000,-661.35,0.0003178,2]
[426057455,1782131583000,-714.12,0.0003178,2]
[426057456,1782131583000,-511.5,0.0003178,2]
[426057451,1782131583000,-500.0,0.0003178,2]
[426057452,1782131583000,-273.80399588,0.0003178,2]
[426057460,1782131583000,-614.75,0.0003178,2]
[426057457,1782131583000,-586.89,0.0003178,2]
[426057465,1782131583000,-500.0,0.0003178,2]
[426057478,1782131583000,-1181.38,0.0003178,2]
[426057466,1782131583000,-688.82,0.0003178,2]
[426057470,1782131583000,-245.06069903,0.0003178,2]
[426057467,1782131583000,-515.21,0.0003178,2]
[426057472,1782131583000,-721.3,0.0003178,2]
[426057469,1782131583000,-500.0,0.0003178,2]
[426057471,1782131583000,-807.35,0.0003178,2]
[426057468,1782131583000,-562.32,0.0003178,2]
[426057474,1782131583000,-528.44,0.0003178,2]
[426057475,1782131583000,-678.94,0.0003178,2]
[426057476,1782131583000,-501.54,0.0003178,2]
[426057473,1782131583000,-500.0,0.0003178,2]
[426057446,1782131583000,-1180.24,0.0003178,2]
[426057464,1782131583000,-500.0,0.0003178,2]
[426057453,1782131583000,-500.0,0.0003178,2]
[426057421,1782131583000,-400.0,0.0003177,2]
[426057454,1782131583000,-500.0,0.0003178,2]
[426057422,1782131583000,-300.0,0.0003177,2]
[426057424,1782131583000,-150.0,0.0003178,2]
[426057423,1782131583000,-250.0,0.0003178,21]
[426057426,1782131583000,-194.399,0.0003178,2]
[426057427,1782131583000,-819.26,0.0003178,2]
[426057425,1782131583000,-150.0,0.0003178,2]
[426057428,1782131583000,-585.84,0.0003178,2]
[426057429,1782131583000,-500.0,0.0003178,2]
[426057441,1782131583000,-755.16,0.0003178,2]
[426057440,1782131583000,-2673.46,0.0003178,2]
[426057430,1782131583000,-680.9,0.0003178,2]
[426057431,1782131583000,-970.83,0.0003178,2]
[426057444,1782131583000,-500.51,0.0003178,2]
[426057432,1782131583000,-633.7,0.0003178,2]
[426057436,1782131583000,-551.88711084,0.0003178,2]
[426057437,1782131583000,-539.78,0.0003178,2]
[426057435,1782131583000,-1724.88,0.0003178,2]
[426057438,1782131583000,-1276.25,0.0003178,2]
[426057439,1782131583000,-666.68,0.0003178,2]
[426057434,1782131583000,-947.67,0.0003178,2]
[426057442,1782131583000,-695.0,0.0003178,2]
[426057445,1782131583000,-557.46,0.0003178,2]
[426057447,1782131583000,-500.0,0.0003178,2]
[426057450,1782131583000,-983.84,0.0003178,2]
[426057449,1782131583000,-739.37,0.0003178,2]
[426057443,1782131583000,-367.46095266,0.0003178,2]
[426057433,1782131583000,-513.94,0.0003178,2]
[426057482,1782131583000,-725.12,0.0003178,2]
[426057483,1782131583000,-176.68339054,0.0003178,2]
[426057480,1782131583000,-500.0,0.0003178,2]
[426057523,1782131583000,-992.54,0.0003178,2]
[426057524,1782131583000,-947.18,0.0003178,2]
[426057520,1782131583000,-715.39,0.0003178,2]
[426057512,1782131583000,-834.64,0.0003178,2]
[426057515,1782131583000,-853.2,0.0003178,2]
[426057514,1782131583000,-510.33,0.0003178,2]
[426057517,1782131583000,-900.89,0.0003178,2]
[426057516,1782131583000,-564.32,0.0003178,2]
[426057518,1782131583000,-500.0,0.0003178,2]
[426057519,1782131583000,-500.0,0.0003178,2]
[426057521,1782131583000,-636.73,0.0003178,2]
[426057530,1782131583000,-858.12,0.0003178,2]
[426057513,1782131583000,-790.49,0.0003178,2]
[426057526,1782131583000,-500.0,0.0003178,2]
[426057536,1782131583000,-689.12,0.0003178,2]
[426057529,1782131583000,-1250.12,0.0003178,2]
[426057531,1782131583000,-577.94,0.0003178,2]
[426057525,1782131583000,-617.25,0.0003178,2]
[426057532,1782131583000,-1069.93,0.0003178,2]
[426057527,1782131583000,-524.23,0.0003178,2]
[426057535,1782131583000,-740.41,0.0003178,2]
[426057528,1782131583000,-500.0,0.0003178,2]
[426057534,1782131583000,-521.74,0.0003178,2]
[426057537,1782131583000,-3364.63,0.0003178,2]
[426057538,1782131583000,-500.0,0.0003178,2]
[426057477,1782131583000,-593.04,0.0003178,2]
[426057533,1782131583000,-788.02,0.0003178,2]
[426057507,1782131583000,-718.0,0.0003178,2]
[426057522,1782131583000,-702.96,0.0003178,2]
[426057505,1782131583000,-540.55,0.0003178,2]
[426057508,1782131583000,-500.0,0.0003178,2]
[426057485,1782131583000,-500.0,0.0003178,2]
[426057479,1782131583000,-548.72,0.0003178,2]
[426057484,1782131583000,-1255.65,0.0003178,2]
[426057487,1782131583000,-531.43,0.0003178,2]
[426057486,1782131583000,-703.04,0.0003178,2]
[426057488,1782131583000,-617.49,0.0003178,2]
[426057491,1782131583000,-500.0,0.0003178,2]
[426057490,1782131583000,-944.23,0.0003178,2]
[426057498,1782131583000,-1501.08,0.0003178,2]
[426057494,1782131583000,-584.59,0.0003178,2]
[426057492,1782131583000,-856.58,0.0003178,2]
[426057499,1782131583000,-936.99,0.0003178,2]
[426057489,1782131583000,-1040.83,0.0003178,2]
[426057481,1782131583000,-691.46,0.0003178,2]
[426057506,1782131583000,-554.01,0.0003178,2]
[426057493,1782131583000,-850.25,0.0003178,2]
[426057504,1782131583000,-670.91,0.0003178,2]
[426057503,1782131583000,-786.59,0.0003178,2]
[426057511,1782131583000,-504.09,0.0003178,2]
[426057502,1782131583000,-1046.3,0.0003178,2]
[426057500,1782131583000,-500.0,0.0003178,2]
[426057510,1782131583000,-790.07,0.0003178,2]
[426057501,1782131583000,-500.0,0.0003178,2]
[426057497,1782131583000,-500.0,0.0003178,2]
[426057495,1782131583000,-608.59,0.0003178,2]
[426057496,1782131583000,-523.74,0.0003178,2]
[426057509,1782131583000,-666.78,0.0003178,2]
[426057573,1782131584000,-1014.22,0.0003178,2]
[426057581,1782131584000,-571.32,0.0003178,2]
[426057576,1782131584000,-696.96,0.0003178,2]
[426057583,1782131584000,-700.09,0.0003178,2]
[426057575,1782131584000,-500.0,0.0003178,2]
[426057567,1782131584000,-500.0,0.0003178,2]
[426057595,1782131584000,-816.43,0.0003178,2]
[426057566,1782131584000,-500.0,0.0003178,2]
[426057562,1782131584000,-1050.73,0.0003178,2]
[426057569,1782131584000,-526.09,0.0003178,2]
[426057577,1782131584000,-846.46,0.0003178,2]
[426057574,1782131584000,-694.68,0.0003178,2]
[426057580,1782131584000,-500.0,0.0003178,2]
[426057586,1782131584000,-559.62,0.0003178,2]
[426057579,1782131584000,-500.0,0.0003178,2]
[426057582,1782131584000,-500.0,0.0003178,2]
[426057584,1782131584000,-562.61,0.0003178,2]
[426057587,1782131584000,-500.0,0.0003178,2]
[426057588,1782131584000,-500.0,0.0003178,2]
[426057590,1782131584000,-3267.88,0.0003178,2]
[426057589,1782131584000,-739.97,0.0003178,2]
[426057592,1782131584000,-500.0,0.0003178,2]
[426057594,1782131584000,-905.07,0.0003178,2]
[426057593,1782131584000,-500.0,0.0003178,2]
[426057591,1782131584000,-500.0,0.0003178,2]
[426057585,1782131584000,-739.97,0.0003178,2]
[426057578,1782131584000,-928.29,0.0003178,2]
[426057570,1782131584000,-541.49,0.0003178,2]
[426057539,1782131584000,-879.63,0.0003178,2]
[426057568,1782131584000,-945.27,0.0003178,2]
[426057541,1782131584000,-4029.46,0.0003178,2]
[426057540,1782131584000,-500.0,0.0003178,2]
[426057544,1782131584000,-869.96,0.0003178,2]
[426057542,1782131584000,-500.0,0.0003178,2]
[426057546,1782131584000,-635.95,0.0003178,2]
[426057548,1782131584000,-501.26,0.0003178,2]
[426057543,1782131584000,-739.67,0.0003178,2]
[426057547,1782131584000,-500.0,0.0003178,2]
[426057545,1782131584000,-500.0,0.0003178,2]
[426057549,1782131584000,-500.0,0.0003178,2]
[426057551,1782131584000,-500.0,0.0003178,2]
[426057559,1782131584000,-600.74,0.0003178,2]
[426057571,1782131584000,-590.33,0.0003178,2]
[426057550,1782131584000,-758.34,0.0003178,2]
[426057558,1782131584000,-1443.16,0.0003178,2]
[426057553,1782131584000,-940.86,0.0003178,2]
[426057556,1782131584000,-500.0,0.0003178,2]
[426057552,1782131584000,-500.0,0.0003178,2]
[426057554,1782131584000,-873.39,0.0003178,2]
[426057555,1782131584000,-500.0,0.0003178,2]
[426057560,1782131584000,-3639.77,0.0003178,2]
[426057561,1782131584000,-445.1069055,0.0003178,2]
[426057563,1782131584000,-636.07,0.0003178,2]
[426057564,1782131584000,-510.38,0.0003178,2]
[426057572,1782131584000,-986.53,0.0003178,2]
[426057565,1782131584000,-700.32,0.0003178,2]
[426057557,1782131584000,-784.71,0.0003178,2]
[426057597,1782131584000,-338.07543464,0.0003178,2]
[426057621,1782131584000,-733.03,0.0003178,2]
[426057599,1782131584000,-1352.1,0.0003178,2]
[426057628,1782131584000,-500.0,0.0003178,2]
[426057637,1782131584000,-698.47,0.0003178,2]
[426057633,1782131584000,-554.28,0.0003178,2]
[426057634,1782131584000,-2746.21,0.0003178,2]
[426057636,1782131584000,-500.0,0.0003178,2]
[426057635,1782131584000,-785.53,0.0003178,2]
[426057631,1782131584000,-500.0,0.0003178,2]
[426057643,1782131584000,-331.85402353,0.0003178,2]
[426057641,1782131584000,-585.33,0.0003178,2]
[426057639,1782131584000,-1155.68,0.0003178,2]
[426057632,1782131584000,-500.0,0.0003178,2]
[426057638,1782131584000,-1706.4,0.0003178,2]
[426057623,1782131584000,-861.51,0.0003178,2]
[426057640,1782131584000,-626.49,0.0003178,2]
[426057645,1782131584000,-1326.5,0.0003178,2]
[426057644,1782131584000,-699.61,0.0003178,2]
[426057646,1782131584000,-500.0,0.0003178,2]
[426057648,1782131584000,-604.11,0.0003178,2]
[426057655,1782131584000,-1158.24,0.0003178,2]
[426057647,1782131584000,-500.0,0.0003178,2]
[426057649,1782131584000,-1302.85,0.0003178,2]
[426057650,1782131584000,-553.22,0.0003178,2]
[426057654,1782131584000,-784.56,0.0003178,2]
[426057651,1782131584000,-636.95,0.0003178,2]
[426057652,1782131584000,-3549.98,0.0003178,2]
[426057596,1782131584000,-558.4,0.0003178,2]
[426057642,1782131584000,-830.91,0.0003178,2]
[426057625,1782131584000,-804.78,0.0003178,2]
[426057653,1782131584000,-500.0,0.0003178,2]
[426057626,1782131584000,-593.89,0.0003178,2]
[426057624,1782131584000,-641.137238,0.0003178,2]
[426057601,1782131584000,-500.0,0.0003178,2]
[426057602,1782131584000,-1075.88,0.0003178,2]
[426057600,1782131584000,-1369.37,0.0003178,2]
[426057604,1782131584000,-500.0,0.0003178,2]
[426057603,1782131584000,-806.98,0.0003178,2]
[426057606,1782131584000,-519.81,0.0003178,2]
[426057605,1782131584000,-3183.96,0.0003178,2]
[426057607,1782131584000,-500.0,0.0003178,2]
[426057608,1782131584000,-500.0,0.0003178,2]
[426057613,1782131584000,-500.0,0.0003178,2]
[426057612,1782131584000,-512.67,0.0003178,2]
[426057609,1782131584000,-596.6,0.0003178,2]
[426057598,1782131584000,-827.96,0.0003178,2]
[426057610,1782131584000,-626.46,0.0003178,2]
[426057627,1782131584000,-2103.48,0.0003178,2]
[426057618,1782131584000,-5000.0,0.0003178,30]
[426057622,1782131584000,-566.57,0.0003178,2]
[426057611,1782131584000,-500.0,0.0003178,2]
[426057629,1782131584000,-500.0,0.0003178,2]
[426057620,1782131584000,-374.67,0.0003178,30]
[426057630,1782131584000,-500.0,0.0003178,2]
[426057615,1782131584000,-500.0,0.0003178,2]
[426057614,1782131584000,-542.05,0.0003178,2]
[426057617,1782131584000,-5000.0,0.0003178,30]
[426057616,1782131584000,-5000.0,0.0003178,30]
[426057619,1782131584000,-2693.07,0.0003178,2]
[426057702,1782131585000,-1169.7,0.0003178,2]
[426057700,1782131585000,-6843.28,0.0003178,2]
[426057698,1782131585000,-500.0,0.0003178,2]
[426057690,1782131585000,-1010.5,0.0003178,2]
[426057685,1782131585000,-687.7,0.0003178,2]
[426057688,1782131585000,-685.72,0.0003178,2]
[426057681,1782131585000,-8197.77,0.0003178,2]
[426057684,1782131585000,-3373.56,0.0003178,2]
[426057683,1782131585000,-500.0,0.0003178,2]
[426057686,1782131585000,-570.0,0.0003178,2]
[426057689,1782131585000,-557.86,0.0003178,2]
[426057703,1782131585000,-4492.09,0.0003178,2]
[426057694,1782131585000,-7121.05,0.0003178,2]
[426057696,1782131585000,-657.57,0.0003178,2]
[426057699,1782131585000,-500.0,0.0003178,2]
[426057697,1782131585000,-500.0,0.0003178,2]
[426057693,1782131585000,-1413.15,0.0003178,2]
[426057695,1782131585000,-500.0,0.0003178,2]
[426057704,1782131585000,-6597.51,0.0003178,2]
[426057709,1782131585000,-658.07,0.0003178,2]
[426057708,1782131585000,-9672.86,0.0003178,2]
[426057712,1782131585000,-500.0,0.0003178,2]
[426057705,1782131585000,-5976.83,0.0003178,2]
[426057682,1782131585000,-2000.0,0.0003178,2]
[426057711,1782131585000,-500.0,0.0003178,2]
[426057701,1782131585000,-4227.56,0.0003178,2]
[426057691,1782131585000,-500.0,0.0003178,2]
[426057670,1782131585000,-4341.82,0.0003178,2]
[426057687,1782131585000,-713.2,0.0003178,2]
[426057710,1782131585000,-909.43,0.0003178,2]
[426057659,1782131585000,-1271.92,0.0003178,2]
[426057657,1782131585000,-567.35,0.0003178,2]
[426057665,1782131585000,-1838.48,0.0003178,2]
[426057662,1782131585000,-500.0,0.0003178,2]
[426057658,1782131585000,-546.18,0.0003178,2]
[426057660,1782131585000,-1496.54,0.0003178,2]
[426057668,1782131585000,-500.0,0.0003178,2]
[426057661,1782131585000,-3395.17,0.0003178,2]
[426057664,1782131585000,-695.59,0.0003178,2]
[426057656,1782131585000,-519.8,0.0003178,2]
[426057663,1782131585000,-1362.17,0.0003178,2]
[426057667,1782131585000,-504.85,0.0003178,2]
[426057666,1782131585000,-711.86,0.0003178,2]
[426057680,1782131585000,-500.0,0.0003178,2]
[426057669,1782131585000,-500.0,0.0003178,2]
[426057673,1782131585000,-2940.44,0.0003178,2]
[426057676,1782131585000,-5138.93,0.0003178,2]
[426057671,1782131585000,-6186.73,0.0003178,2]
[426057675,1782131585000,-616.23,0.0003178,2]
[426057672,1782131585000,-4113.41,0.0003178,2]
[426057679,1782131585000,-849.12,0.0003178,2]
[426057678,1782131585000,-1204.89,0.0003178,2]
[426057677,1782131585000,-847.85,0.0003178,2]
[426057674,1782131585000,-11028.8,0.0003178,2]
[426057692,1782131585000,-591.59,0.0003178,2]
[426057714,1782131585000,-8639.58,0.0003178,2]
[426057723,1782131585000,-500.0,0.0003178,2]
[426057706,1782131585000,-7004.08,0.0003178,2]
[426057742,1782131585000,-805.85,0.0003178,2]
[426057746,1782131585000,-984.2,0.0003178,2]
[426057747,1782131585000,-500.0,0.0003178,2]
[426057745,1782131585000,-948.85,0.0003178,2]
[426057748,1782131585000,-500.0,0.0003178,2]
[426057754,1782131585000,-1653.7,0.00031849,2]
[426057750,1782131585000,-1729.69,0.00031788,7]
[426057752,1782131585000,-228.55605509,0.00031811,120]
[426057751,1782131585000,-176.49520586,0.00031793,7]
[426057753,1782131585000,-500.0,0.0003182,2]
[426057756,1782131585000,-435.8,0.000319,120]
[426057758,1782131585000,-785.0,0.00031907,2]
[426057757,1782131585000,-1653.7,0.00031903,30]
[426057755,1782131585000,-501.0,0.00031889,7]
[426057749,1782131585000,-405.07,0.00031781,120]
[426057707,1782131585000,-500.0,0.0003178,2]
[426057761,1782131585000,-9012.0806296,0.00031932,4]
[426057760,1782131585000,-436.0,0.00031909,30]
[426057763,1782131585000,-181.0,0.00031937,30]
[426057765,1782131585000,-150.0,0.00031942,120]
[426057762,1782131585000,-180.0,0.00031937,30]
[426057768,1782131585000,-1115.0,0.00031953,30]
[426057764,1782131585000,-159.0,0.00031937,30]
[426057767,1782131585000,-826.0,0.00031953,30]
[426057766,1782131585000,-706.07703435,0.00031945,120]
[426057744,1782131585000,-1013.21,0.0003178,2]
[426057739,1782131585000,-1281.85,0.0003178,2]
[426057759,1782131585000,-672.0,0.00031909,30]
[426057741,1782131585000,-777.53,0.0003178,2]
[426057743,1782131585000,-879.74,0.0003178,2]
[426057713,1782131585000,-1002.58,0.0003178,2]
[426057716,1782131585000,-8686.62,0.0003178,2]
[426057717,1782131585000,-919.77,0.0003178,2]
[426057715,1782131585000,-4376.06,0.0003178,2]
[426057718,1782131585000,-541.9,0.0003178,2]
[426057720,1782131585000,-500.0,0.0003178,2]
[426057725,1782131585000,-912.76,0.0003178,2]
[426057722,1782131585000,-844.33,0.0003178,2]
[426057724,1782131585000,-1087.5,0.0003178,2]
[426057721,1782131585000,-775.18,0.0003178,2]
[426057729,1782131585000,-2044.4,0.0003178,2]
[426057719,1782131585000,-5625.93,0.0003178,2]
[426057735,1782131585000,-298.55,0.0003178,2]